bitfinex-derivatives/quotes_SOLF0:USTF0_20250425
["timestamp","ask_amount","ask_price","bid_price","bid_amount"]
[1745583591989,90.61813284,155.41,155.35,33.7215]
[1745583592292,25.96,155.44,155.35,33.7215]
[1745583592891,25.96,155.44,155.37,17.2454255]
[1745583593092,488.8,155.47,155.37,17.2454255]
[1745583593283,488.8,155.47,155.41,6.4322]
[1745583593487,488.8,155.47,155.37,17.2454255]
[1745583593791,488.8,155.47,155.4,17.2454255]
[1745583593994,488.8,155.47,155.39,25.96]
[1745583594190,25.96,155.47,155.39,25.96]
[1745583594991,25.96,155.5,155.42,17.2454255]
[1745583595493,25.96,155.5,155.47,6.4297]
[1745583595793,25.96,155.5,155.42,17.2454255]
[1745583595993,25.96,155.5,155.46,6.4304]
[1745583596491,25.96,155.5,155.42,17.2454255]
[1745583596492,25.96,155.5,155.47,6.4297]
[1745583596689,25.96,155.5,155.34,12.8705]
[1745583596991,17.2454255,155.49,155.36,17.2454255]
[1745583597191,17.2454255,155.49,155.43,6.4314]
[1745583597587,17.2454255,155.49,155.37,25.96]
[1745583597788,17.2454255,155.49,155.44,6.4312]
[1745583597985,17.2454255,155.49,155.38,3.6905]
[1745583598187,17.2454255,155.49,155.42,6.4318]
[1745583598386,17.2454255,155.49,155.38,3.6905]
[1745583598586,17.2454255,155.46,155.34,43.2054255]
[1745583598792,25.96,155.45,155.34,43.2054255]
[1745583599695,6.4319,155.43,155.39,6.433]
[1745583600097,25.96,155.45,155.34,43.2054255]
[1745583601296,25.96,155.45,155.42,6.4319]
[1745583602098,32.391,155.45,155.41,6.4324]
[1745583602397,25.96,155.45,155.34,43.2054255]
[1745583602698,32.391,155.45,155.41,6.4322]
[1745583603197,32.391,155.45,155.42,6.432]
[1745583603498,32.391,155.45,155.34,43.2054255]
[1745583603796,25.96,155.45,155.37,17.2454255]
[1745583604097,25.96,155.48,155.38,25.96]
[1745583604398,17.2454255,155.52,155.38,25.96]
[1745583604598,25.96,155.51,155.4,17.2454255]
[1745583604803,6.4292,155.49,155.45,6.4306]
[1745583605399,25.96,155.51,155.41,8.0758]
[1745583605701,17.2454255,155.49,155.41,8.0758]
[1745583606100,17.2454255,155.49,155.39,3.8962]
[1745583606301,6.4311,155.45,155.41,6.4322]
[1745583606601,25.96,155.44,155.41,6.4322]
[1745583606899,17.2454255,155.43,155.36,7.6993]
[1745583607499,6.4327,155.41,155.37,6.4338]
[1745583607700,6.4327,155.41,155.36,7.6993]
[1745583607895,6.4327,155.41,155.37,6.4339]
[1745583608200,6.4327,155.41,155.31,43.2054255]
[1745583608400,6.4327,155.41,155.37,6.4338]
[1745583608703,6.4329,155.4,155.32,7.482]
[1745583608903,32.0729,155.4,155.32,7.482]
[1745583609402,32.0729,155.4,155.36,6.4343]
[1745583610602,25.64,155.4,155.36,6.4343]
[1745583610802,42.8854255,155.4,155.34,6.4351]
[1745583610996,42.8854255,155.4,155.32,7.482]
[1745583611199,17.2454255,155.37,155.22,488.72]
[1745583611402,17.2454255,155.34,155.23,11.6222]
[1745583611602,6.4369,155.31,155.23,11.6222]
[1745583611996,25.64,155.33,155.23,11.6222]
[1745583612202,17.2454255,155.31,155.23,7.6132]
[1745583612599,17.2454255,155.31,155.18,1.12070076]
[1745583612805,17.2454255,155.25,155.14,17.2454255]
[1745583613104,17.2454255,155.28,155.17,17.2454255]
[1745583613303,25.64,155.27,155.17,17.2454255]
[1745583614010,25.64,155.27,155.18,25.64]
[1745583614307,6.4401,155.23,155.17,23.6878255]
[1745583614503,25.64,155.23,155.15,11.5973]
[1745583615206,17.2454255,155.22,155.15,11.5973]
[1745583615507,6.4423,155.18,155.15,7.578]
[1745583616304,25.66,155.19,155.15,7.578]
[1745583616806,25.66,155.19,155.16,6.4428]
[1745583617010,25.66,155.19,155.15,7.578]
[1745583617306,25.66,155.22,155.15,7.578]
[1745583617502,17.2454255,155.19,155.06,1.12158569]
[1745583617698,25.66,155.18,155.08,17.2454255]
[1745583618006,6.4436,155.15,155.1,6.4452]
[1745583618203,25.66,155.18,155.09,11.5272]
[1745583618606,6.4433,155.15,155.1,6.4452]
[1745583619108,6.4433,155.15,155.09,11.5272]
[1745583619308,25.66,155.18,155.09,11.5272]
[1745583619698,6.443,155.16,155.11,6.4446]
[1745583620207,25.66,155.18,155.09,11.5272]
[1745583620410,25.66,155.18,155.1,6.4451]
[1745583620801,25.66,155.18,155.09,11.5272]
[1745583621003,25.66,155.17,155.09,11.5272]
[1745583622103,32.1025,155.17,155.12,6.4442]
[1745583622508,25.66,155.17,155.09,11.5272]
[1745583622709,32.1024,155.18,155.12,6.4442]
[1745583622905,25.66,155.18,155.09,11.5272]
[1745583623107,25.66,155.18,155.09,28.7726255]
[1745583623304,25.66,155.18,155.14,6.4434]
[1745583623809,25.66,155.18,155.09,28.7726255]
[1745583624513,32.1022,155.18,155.14,6.4436]
[1745583625112,25.66,155.18,155.12,6.4441]
[1745583625310,17.2454255,155.16,155.09,7.7407]
[1745583625710,6.4442,155.13,155.09,14.1864]
[1745583626014,25.66,155.13,155.09,7.7407]
[1745583626311,32.1044,155.13,155.09,14.1864]
[1745583626815,32.1044,155.13,155.09,7.7407]
[1745583627014,25.66,155.13,155.05,3.7317]
[1745583627422,25.66,155.13,155.1,6.4453]
[1745583627718,25.66,155.13,155.05,3.7317]
[1745583628212,6.4452,155.11,155.05,3.7317]
[1745583628416,42.9054255,155.13,155.05,3.7317]
[1745583628916,6.4446,155.12,155.08,6.4458]
[1745583629315,42.9054255,155.13,155.05,3.7317]
[1745583630714,49.3496255,155.13,155.05,3.7317]
[1745583630921,42.9054255,155.13,155.05,3.7317]
[1745583631818,42.9054255,155.13,155.1,6.4453]
[1745583632924,49.3495255,155.13,155.1,6.4453]
[1745583633525,49.3495255,155.13,155.09,6.4455]
[1745583634017,6.4448,155.12,155.05,3.7317]
[1745583634216,42.9054255,155.13,155.05,3.7317]
[1745583634217,42.9054255,155.13,155.08,6.446]
[1745583634521,6.4447,155.12,155.05,3.7317]
[1745583634823,42.9054255,155.13,155.08,6.4459]
[1745583635020,6.445,155.11,155.08,6.4459]
[1745583635828,42.9054255,155.13,155.01,46.7665255]
[1745583636121,42.9054255,155.13,155.01,3.8411]
[1745583636324,6.4462,155.08,155.05,6.4472]
[1745583636526,32.1262,155.08,155.05,6.4472]
[1745583637119,25.68,155.08,155.01,3.8411]
[1745583637919,6.4474,155.05,155.02,6.4485]
[1745583638118,25.68,155.08,155.0,7.871]
[1745583639625,25.68,155.08,155.07,6.4466]
[1745583639925,17.2454255,155.12,155.01,17.2454255]
[1745583639926,42.8054255,155.12,155.01,17.2454255]
[1745583640125,25.56,155.14,155.04,17.2454255]
[1745583640323,25.56,155.14,155.05,4.0618]
[1745583640926,6.4445,155.12,155.05,4.0618]
[1745583641416,25.56,155.14,155.08,6.4458]
[1745583641623,17.2454255,155.13,155.05,4.0618]
[1745583641925,17.2454255,155.13,155.06,6.4467]
[1745583642326,17.2454255,155.13,155.02,25.56]
[1745583642621,6.4461,155.09,155.04,6.4476]
[1745583642827,25.56,155.08,155.0,7.871]
[1745583643125,32.0068,155.07,155.02,6.4485]
[1745583643324,25.56,155.07,155.0,7.871]
[1745583643626,6.4477,155.05,155.01,6.4489]
[1745583644127,25.56,155.07,155.0,7.871]
[1745583644726,6.4477,155.05,155.01,6.4488]
[1745583646331,463.9,155.15,155.0,7.871]
[1745583646628,17.2454255,155.11,155.0,7.871]
[1745583646827,25.56,155.1,155.0,7.871]
[1745583647128,6.446,155.09,155.0,7.871]
[1745583647625,6.446,155.09,155.05,6.4472]
[1745583647827,32.0055,155.1,155.01,17.2454255]
[1745583648224,25.56,155.09,155.01,17.2454255]
[1745583649129,25.56,155.09,155.07,6.4463]
[1745583649530,25.56,155.09,155.01,17.2454255]
[1745583650130,6.4463,155.08,155.05,6.4472]
[1745583650433,6.4467,155.07,155.01,17.2454255]
[1745583650731,25.56,155.09,155.01,17.2454255]
[1745583651031,17.2454255,155.08,155.0,7.871]
[1745583651232,17.2454255,155.08,155.0,6.4494]
[1745583651432,17.2454255,155.08,154.96,25.3113255]
[1745583651628,6.4483,155.03,154.96,25.3113255]
[1745583651831,25.56,155.02,154.96,25.3113255]
[1745583652433,25.56,155.02,155.01,6.4491]
[1745583653223,17.2454255,155.11,154.96,25.3113255]
[1745583653427,25.56,155.1,154.99,17.2454255]
[1745583653627,6.4464,155.08,154.99,17.2454255]
[1745583653829,6.4464,155.08,155.05,6.4473]
[1745583654233,6.4466,155.07,154.99,17.2454255]
[1745583654433,25.56,155.06,155.05,6.4474]
[1745583655633,25.56,155.06,155.04,6.4476]
[1745583656134,25.56,155.06,155.04,6.4478]
[1745583656333,25.56,155.06,154.99,17.2454255]
[1745583656530,32.0071,155.06,154.99,17.2454255]
[1745583657034,6.4477,155.05,154.99,17.2454255]
[1745583657234,25.56,155.06,155.03,6.4482]
[1745583657630,32.0073,155.06,155.03,6.4482]
[1745583658333,25.56,155.06,155.03,6.4482]
[1745583658632,25.56,155.06,154.99,17.2454255]
[1745583659132,25.56,155.06,155.05,6.4474]
[1745583660634,25.56,155.06,155.04,6.4477]
[1745583660832,25.56,155.06,154.99,17.2454255]
[1745583661133,25.56,155.06,154.96,25.3113255]
[1745583661737,25.58,155.05,154.96,25.3113255]
[1745583662236,25.58,155.05,155.03,6.4482]
[1745583662435,25.58,155.05,154.96,25.3113255]
[1745583662737,6.4479,155.04,154.96,25.3113255]
[1745583662933,25.58,155.05,154.96,25.3113255]
[1745583663734,6.4464,155.08,155.05,6.4474]
[1745583663936,25.58,155.07,154.99,17.2454255]
[1745583664138,90.61813284,155.13,154.99,42.8254255]
[1745583664339,90.61813284,155.13,155.05,17.2454255]
[1745583664838,90.61813284,155.13,155.08,17.2454255]
[1745583665038,90.61813284,155.13,155.06,11.2848]
[1745583666137,25.58,155.16,155.12,6.4445]
[1745583666334,6.4435,155.15,155.06,11.2848]
[1745583666539,25.58,155.16,155.12,6.4444]
[1745583666741,25.58,155.16,155.06,11.2848]
[1745583666936,6.4441,155.13,155.06,11.2848]
[1745583667141,6.4441,155.13,155.1,6.4453]
[1745583667341,25.58,155.16,155.1,6.4453]
[1745583667641,25.58,155.16,155.06,11.2848]
[1745583668243,6.4444,155.13,155.1,6.4451]
[1745583668743,25.58,155.16,155.06,11.2848]
[1745583669245,6.4435,155.15,155.12,6.4444]
[1745583669440,464.16,155.23,155.06,25.3]
[1745583669640,25.3,155.18,155.08,17.2454255]
[1745583669937,6.4428,155.17,155.08,17.2454255]
[1745583670142,25.3,155.18,155.11,17.2454255]
[1745583670343,17.2454255,155.22,155.11,17.2454255]
[1745583670550,6.4419,155.19,155.15,6.4429]
[1745583670749,25.3,155.21,155.11,17.2454255]
[1745583670945,6.4415,155.2,155.17,6.4424]
[1745583671347,464.16,155.23,155.17,6.4424]
[1745583671852,25.3,155.22,155.16,6.4428]
[1745583672049,25.3,155.22,155.11,17.2454255]
[1745583672255,464.16,155.23,155.14,17.2454255]
[1745583672450,489.46,155.23,155.15,11.8059]
[1745583672651,25.3,155.23,155.17,17.2454255]
[1745583673055,0.91126,155.24,155.17,17.2454255]
[1745583673445,0.91126,155.24,155.22,6.4401]
[1745583673752,0.91126,155.24,155.18,25.28]
[1745583673952,0.91126,155.24,155.2,6.4409]
[1745583674354,0.91126,155.24,155.18,25.28]
[1745583674553,0.91126,155.24,155.22,6.4404]
[1745583674754,0.91126,155.24,155.18,25.28]
[1745583675053,0.91126,155.24,155.21,6.4405]
[1745583675954,0.91126,155.24,155.18,25.28]
[1745583676451,0.91126,155.24,155.23,6.4399]
[1745583676650,0.91126,155.24,155.18,25.28]
[1745583676954,0.91126,155.24,155.22,6.4403]
[1745583677156,0.91126,155.24,155.18,25.28]
[1745583678246,0.91126,155.24,155.15,37.0859]
[1745583678855,17.2454255,155.22,155.09,42.5254255]
[1745583679057,25.28,155.21,155.09,50.2735255]
[1745583679454,25.28,155.21,155.12,6.4444]
[1745583679947,6.4432,155.16,155.12,6.4444]
[1745583680153,25.28,155.21,155.09,50.2735255]
[1745583680555,25.28,155.21,155.14,6.4434]
[1745583680955,25.28,155.21,155.09,50.2735255]
[1745583681356,6.4423,155.18,155.09,50.2735255]
[1745583681756,25.28,155.21,155.09,50.2735255]
[1745583682458,17.2454255,155.19,155.09,50.2735255]
[1745583682658,6.4431,155.16,155.09,50.2735255]
[1745583683054,25.28,155.17,155.09,50.2735255]
[1745583683651,25.28,155.2,155.09,50.2735255]
[1745583683957,6.4421,155.18,155.09,50.2735255]
[1745583684355,25.28,155.2,155.09,50.2735255]
[1745583684554,6.4429,155.16,155.12,6.4443]
[1745583684858,6.4429,155.16,155.09,50.2735255]
[1745583685057,6.4426,155.17,155.13,6.444]
[1745583685257,6.4426,155.17,155.09,50.2735255]
[1745583686360,25.28,155.2,155.09,50.2735255]
[1745583687049,25.28,155.2,155.14,6.4435]
[1745583687550,6.4423,155.18,155.14,6.4435]
[1745583687749,6.4423,155.18,155.15,6.4431]
[1745583688057,25.28,155.2,155.09,50.2735255]
[1745583688256,25.28,155.2,155.14,6.4436]
[1745583688761,25.28,155.2,155.09,50.2735255]
[1745583689260,6.4427,155.17,155.09,50.2735255]
[1745583689460,25.28,155.2,155.09,50.2735255]
[1745583689663,17.2454255,155.19,155.09,33.0281]
[1745583689961,17.2454255,155.19,155.09,39.4737]
[1745583690162,17.2454255,155.19,155.09,33.0281]
[1745583690459,17.2454255,155.19,155.1,6.445]
[1745583690460,6.4437,155.14,155.1,6.445]
[1745583690851,6.4437,155.14,155.09,7.7481]
[1745583691153,6.4437,155.14,155.1,6.4452]
[1745583691559,6.4437,155.14,155.09,7.7481]
[1745583691763,6.4437,155.14,155.11,6.4449]
[1745583692061,25.28,155.15,155.09,7.7481]
[1745583692062,31.7236,155.15,155.09,7.7481]
[1745583692463,31.7236,155.15,155.12,6.4443]
[1745583692664,6.4437,155.14,155.09,7.7481]
[1745583692964,25.28,155.15,155.09,7.7481]
[1745583693265,6.4442,155.13,155.09,7.7481]
[1745583693567,6.4442,155.13,155.1,6.4451]
[1745583693868,6.4438,155.14,155.09,7.7481]
[1745583694063,25.28,155.15,155.11,6.4446]
[1745583694263,25.28,155.15,155.09,7.7481]
[1745583694764,25.28,155.15,155.1,6.445]
[1745583694961,6.4438,155.14,155.1,6.445]
[1745583695163,6.4438,155.14,155.11,6.4448]
[1745583695467,25.28,155.15,155.11,6.4448]
[1745583695766,31.7236,155.15,155.11,6.4448]
[1745583696069,25.28,155.15,155.12,6.4445]
[1745583696364,31.7234,155.15,155.12,6.4445]
[1745583697056,6.4438,155.14,155.09,7.7481]
[1745583697366,10.79974666,155.2,155.1,10.79974666]
[1745583697560,25.28,155.19,155.12,10.79974666]
[1745583697967,6.4421,155.18,155.12,10.79974666]
[1745583698169,6.4421,155.18,155.15,6.4429]
[1745583698366,25.28,155.19,155.1,36.07974666]
[1745583699269,25.28,155.19,155.1,25.28]
[1745583699868,25.28,155.19,155.09,7.7481]
[1745583700067,25.28,155.19,155.12,6.4443]
[1745583700372,25.28,155.19,155.09,7.7481]
[1745583701064,6.4439,155.14,155.09,7.7481]
[1745583701367,25.28,155.19,155.09,7.7481]
[1745583702069,17.27589365,155.18,155.07,3.9241]
[1745583702270,17.27589365,155.18,155.1,6.4452]
[1745583702472,17.27589365,155.18,155.07,3.9241]
[1745583703269,6.4452,155.11,155.08,6.4459]
[1745583703972,31.7247,155.12,155.09,6.4457]
[1745583704268,25.28,155.12,155.04,17.27589365]
[1745583704670,25.28,155.12,155.1,6.4453]
[1745583705376,31.7246,155.12,155.1,6.4453]
[1745583705666,25.28,155.12,155.03,36.7732]
[1745583705865,6.4456,155.1,155.03,36.7732]
[1745583706072,25.28,155.12,155.07,6.4464]
[1745583706273,25.28,155.12,155.03,36.7732]
[1745583706470,6.4461,155.09,155.03,36.7732]
[1745583706871,6.4461,155.09,155.06,6.4468]
[1745583707069,25.28,155.12,155.03,36.7732]
[1745583707464,6.4458,155.09,155.07,6.4465]
[1745583707666,25.28,155.12,155.07,6.4465]
[1745583707871,25.28,155.12,155.03,36.7732]
[1745583708071,6.4458,155.09,155.06,6.4468]
[1745583708269,25.28,155.12,155.03,36.7732]
[1745583708765,42.55589365,155.12,155.02,17.27589365]
[1745583709275,6.446,155.09,155.06,6.4468]
[1745583709970,6.4463,155.08,155.05,6.4473]
[1745583710169,42.55589365,155.12,155.01,29.2672]
[1745583710571,6.4459,155.09,155.01,29.2672]
[1745583711077,6.4459,155.09,155.06,6.4467]
[1745583711376,6.4464,155.08,155.01,29.2672]
[1745583711568,42.55589365,155.12,155.06,6.4468]
[1745583712074,6.446,155.09,155.06,6.4468]
[1745583712869,6.4463,155.08,155.06,6.4468]
[1745583713274,25.28,155.12,155.06,6.4468]
[1745583713476,6.4461,155.09,155.06,6.4468]
[1745583713780,42.55589365,155.12,155.05,6.4473]
[1745583714075,6.4464,155.08,155.05,6.4473]
[1745583714375,25.28,155.07,155.04,6.4476]
[1745583714571,6.4468,155.07,155.04,6.4476]
[1745583714877,25.28,155.08,155.03,6.4481]
[1745583715076,6.4472,155.06,155.03,6.4481]
[1745583715475,25.28,155.08,155.03,6.4481]
[1745583715674,25.28,155.08,155.02,6.4486]
[1745583715880,25.28,155.08,155.01,3.9872]
[1745583716072,25.28,155.08,154.99,7.6908]
[1745583716777,17.27589365,155.06,154.96,17.27589365]
[1745583716974,17.27589365,155.06,154.95,29.0994]
[1745583717177,17.27589365,155.06,154.95,3.8194]
[1745583717482,17.27589365,155.06,154.98,6.4503]
[1745583717678,6.4495,155.01,154.98,6.4503]
[1745583717877,25.28,155.0,154.98,6.4503]
[1745583718077,25.28,155.0,154.96,6.451]
[1745583718376,25.28,155.0,154.95,3.8194]
[1745583718771,6.45,154.99,154.95,3.8194]
[1745583719179,6.45,154.99,154.96,6.451]
[1745583719475,25.28,155.04,154.97,10.82165188]
[1745583719674,25.28,155.05,154.97,10.82165188]
[1745583719980,31.7275,155.05,154.99,10.82165188]
[1745583720478,25.28,155.05,154.99,10.82165188]
[1745583721073,474.88165188,155.11,155.01,10.82165188]
[1745583721382,25.28,155.1,155.02,3.8317]
[1745583721582,25.28,155.09,155.02,3.8317]
[1745583721782,36.10165188,155.09,155.02,3.8317]
[1745583722078,6.4464,155.08,155.05,6.4472]
[1745583722282,25.28,155.09,155.02,3.8317]
[1745583722481,25.28,155.08,155.02,3.8317]
[1745583722784,25.28,155.08,155.06,6.4467]
[1745583723283,25.28,155.08,155.02,3.8317]
[1745583723782,489.34,155.11,155.03,10.82165188]
[1745583723982,489.34,155.11,155.05,10.82165188]
[1745583724284,25.28,155.11,155.05,10.82165188]
[1745583725076,25.28,155.11,155.09,6.4455]
[1745583725277,25.28,155.11,155.05,10.82165188]
[1745583725579,25.28,155.14,155.07,10.82165188]
[1745583725778,25.28,155.14,155.11,6.4447]
[1745583725980,25.28,155.14,155.07,10.82165188]
[1745583726181,6.4442,155.13,155.09,6.4457]
[1745583726581,6.4442,155.13,155.06,25.28]
[1745583726582,25.28,155.14,155.06,25.28]
[1745583726779,6.4441,155.13,155.06,25.28]
[1745583726975,10.82165188,155.13,155.06,25.28]
[1745583727182,10.82165188,155.13,155.03,7.6181]
[1745583727183,6.4451,155.11,155.08,6.446]
[1745583727382,10.82165188,155.13,155.08,6.446]
[1745583727584,10.82165188,155.09,155.02,3.8317]
[1745583727783,10.82165188,155.06,154.98,3.8974]
[1745583727991,10.82165188,155.06,154.98,7.7969]
[1745583728482,10.82165188,155.1,155.01,10.82165188]
[1745583728886,10.82165188,155.1,155.06,6.4466]
[1745583729287,10.82165188,155.12,155.03,10.82165188]
[1745583729487,10.82165188,155.12,155.04,4.0526]
[1745583729985,10.82165188,155.12,155.08,6.4461]
[1745583730287,10.82165188,155.12,155.04,4.0526]
[1745583730481,25.28,155.13,155.05,7.4203]
[1745583730887,25.28,155.13,155.05,18.24195188]
[1745583731387,25.28,155.13,155.05,7.4203]
[1745583731686,25.28,155.13,155.09,6.4455]
[1745583731887,25.28,155.13,155.05,7.4203]
[1745583732687,25.28,155.13,155.12,6.4445]
[1745583733688,25.28,155.13,155.11,6.4447]
[1745583733888,25.28,155.13,155.05,7.4203]
[1745583734183,25.28,155.13,155.11,6.4445]
[1745583734383,0.95068,155.16,155.07,17.28494563]
[1745583734590,0.95068,155.16,155.08,25.28]
[1745583735386,0.95068,155.16,155.14,6.4434]
[1745583735890,0.95068,155.16,155.08,25.28]
[1745583737295,0.95068,155.16,155.1,17.28494563]
[1745583737493,0.95068,155.16,155.11,3.9115]
[1745583737686,0.95068,155.16,155.15,6.4433]
[1745583738193,0.95068,155.16,155.12,6.4445]
[1745583738789,0.95068,155.16,155.11,6.4447]
[1745583739091,26.21068,155.16,155.11,6.4447]
[1745583739686,26.21068,155.16,155.12,6.4444]
[1745583739888,26.21068,155.16,155.08,25.26]
[1745583740289,26.21068,155.16,155.1,6.4452]
[1745583740593,26.21068,155.16,155.06,3.9115]
[1745583740894,26.21068,155.16,155.1,6.4453]
[1745583741192,26.21068,155.16,155.09,25.26]
[1745583741391,0.95068,155.16,155.14,6.4435]
[1745583741593,0.95068,155.16,155.1,17.28494563]
[1745583742094,0.95068,155.16,155.15,6.4433]
[1745583743494,0.95068,155.16,155.13,6.4437]
[1745583743692,0.95068,155.16,155.09,25.26]
[1745583743896,25.26,155.15,155.06,29.1715]
[1745583744094,25.26,155.15,155.1,6.4453]
[1745583744394,25.26,155.15,155.06,29.1715]
[1745583745697,25.26,155.15,155.1,6.4451]
[1745583746303,25.26,155.15,155.11,6.4448]
[1745583749504,25.26,155.15,155.12,6.4444]
[1745583749806,25.26,155.15,155.06,29.1715]
[1745583750001,25.26,155.15,155.11,6.4449]
[1745583750500,25.26,155.15,155.11,6.4446]
[1745583751001,25.26,155.15,155.06,29.1715]
[1745583751204,25.26,155.15,155.1,6.4452]
[1745583751503,10.80517649,155.13,155.1,6.4452]
[1745583751807,10.80517649,155.13,155.06,29.1715]
[1745583753005,10.80517649,155.13,155.1,6.445]
[1745583753507,25.26,155.15,155.08,10.80517649]
[1745583753707,0.95068,155.16,155.1,10.80517649]
[1745583754007,0.95068,155.16,155.13,6.4439]
[1745583754503,0.95068,155.16,155.08,10.80517649]
[1745583755003,0.95068,155.16,155.1,10.80517649]
[1745583755203,0.95068,155.16,155.15,6.4433]
[1745583757209,25.26,155.18,155.17,6.4424]
[1745583757507,500.02517649,155.21,155.17,6.4424]
[1745583757709,500.02517649,155.21,155.13,7.5425]
[1745583757910,500.02517649,155.21,155.16,6.4425]
[1745583758302,500.02517649,155.21,155.13,7.5425]
[1745583758303,25.26,155.21,155.14,10.80517649]
[1745583758507,25.24,155.24,155.16,10.80517649]
[1745583758711,25.24,155.24,155.18,10.80517649]
[1745583760112,31.6796,155.24,155.18,10.80517649]
[1745583760612,25.24,155.24,155.22,6.4403]
[1745583761112,25.24,155.24,155.16,10.80517649]
[1745583761508,25.24,155.24,155.18,10.80517649]
[1745583762212,25.24,155.27,155.18,10.80517649]
[1745583762414,25.24,155.27,155.19,3.7363]
[1745583762811,25.24,155.27,155.2,18.32537649]
[1745583763010,31.6785,155.27,155.2,18.32537649]
[1745583763409,25.24,155.27,155.2,18.32537649]
[1745583763914,6.4387,155.26,155.23,6.4396]
[1745583764615,36.04517649,155.27,155.22,6.4402]
[1745583764810,36.04517649,155.27,155.2,3.7881]
[1745583765212,6.4398,155.24,155.21,6.4406]
[1745583765412,36.04517649,155.27,155.2,3.7881]
[1745583765609,6.4394,155.25,155.22,6.4401]
[1745583765814,36.04517649,155.27,155.2,3.7881]
[1745583766115,6.4394,155.25,155.22,6.4403]
[1745583766309,6.4394,155.25,155.2,3.7881]
[1745583766819,6.4394,155.25,155.23,6.4398]
[1745583767013,6.4394,155.25,155.2,3.7881]
[1745583767317,6.4394,155.25,155.22,6.4401]
[1745583767615,36.04517649,155.27,155.2,3.7881]
[1745583768016,36.04517649,155.27,155.22,6.4401]
[1745583768819,6.4393,155.25,155.22,6.4401]
[1745583769515,6.4395,155.24,155.21,6.4406]
[1745583769710,10.80517649,155.25,155.19,3.7363]
[1745583770118,6.4397,155.24,155.19,3.7363]
[1745583771120,6.4397,155.24,155.22,6.4404]
[1745583771320,17.24467649,155.25,155.22,6.4404]
[1745583772819,6.4396,155.24,155.22,6.4404]
[1745583773320,6.4396,155.24,155.21,6.4406]
[1745583773519,6.44,155.23,155.21,6.4406]
[1745583773722,10.80517649,155.25,155.19,3.7363]
[1745583774020,36.04517649,155.27,155.19,3.7363]
[1745583774718,25.24,155.27,155.19,3.7363]
[1745583774920,31.6785,155.27,155.24,6.4393]
[1745583775121,25.24,155.27,155.2,10.80517649]
[1745583775522,25.24,155.27,155.25,6.4389]
[1745583776124,31.6784,155.27,155.25,6.4389]
[1745583776422,25.24,155.27,155.25,6.4389]
[1745583777025,25.24,155.27,155.26,6.4387]
[1745583777222,17.24267649,155.29,155.22,3.7979]
[1745583777726,6.4375,155.29,155.27,6.4383]
[1745583777925,489.18,155.3,155.27,6.4383]
[1745583778827,6.4377,155.29,155.26,6.4385]
[1745583779027,489.18,155.3,155.22,14.60307649]
[1745583779028,10.80517649,155.27,155.22,3.7979]
[1745583779419,17.24367649,155.27,155.24,6.4391]
[1745583779624,17.24367649,155.27,155.22,3.7979]
[1745583779830,10.80517649,155.27,155.22,3.7979]
[1745583780027,6.4382,155.28,155.22,3.7979]
[1745583780228,10.80517649,155.25,155.16,10.80517649]
[1745583780429,17.24447649,155.25,155.17,7.7962]
[1745583780628,6.4393,155.25,155.17,7.7962]
[1745583780825,36.02517649,155.26,155.18,10.80517649]
[1745583781028,31.6578,155.29,155.2,10.80517649]
[1745583781328,25.22,155.29,155.21,14.72857649]
[1745583781529,31.6575,155.29,155.21,14.72857649]